[Event "Turkish Cup 2024"]
[Site "Denizli"]
[Date "2024.07.30"]
[Round "1"]
[White "Ozaydin, Yilmaz Ege"]
[Black "Topuz, Mirac Melih"]
[Result "0-1"]
[ECO "B47"]
[WhiteElo "1632"]
[BlackElo "2148"]
[Annotator "RC"]
[PlyCount "68"]
[EventDate "2024.08.01"]
[EventType "swiss"]
[EventCountry "TUR"]
[SourceTitle "playchess.com"]
[Source "ChessBase"]
[SourceQuality "1"]
[TimeControl "5400+30"]

1. e4 {[%emt 0:01:00]} c5 {[%emt 0:01:00]} 2. Nf3 {[%emt 0:00:30]} e6 {[%emt 0:00:30]} 3. d4 {[%emt 0:00:30]} cxd4 {[%emt 0:00:30]} 4. Nxd4 {[%emt 0:00:30]} Nc6 {[%emt 0:00:00]} 5. Nc3 {[%emt 0:00:00]} Qc7 {[%emt 0:00:00]} 6. g3 {[%emt 0:00:00]} a6 {[%emt 0:00:00]} 7. Nb3 {[%emt 0:00:00]} Nf6 {[%emt 0:05:00]} 8. Bg2 {[%emt 0:03:00]} Be7 {[%emt 0:00:30]} 9. O-O {[%emt 0:00:00]} O-O {[%emt 0:00:30]} 10. f4 {[%emt 0:03:00]} d6 {[%emt 0:04:30]} 11. g4 {[%emt 0:03:30]} Nd7 {[%emt 0:04:30]} 12. g5 {[%emt 0:03:30]} f6 {[%emt 0:08:30]} 13. h4 {[%emt 0:09:30]} b5 {[%emt 0:07:30]} 14. a3 {[%emt 0:05:30]} Nb6 {[%emt 0:04:30]} 15. Rf3 {[%emt 0:06:30]} Nc4 {[%emt 0:02:30]} 16. Rg3 {[%emt 0:09:30]} Rb8 {[%emt 0:12:30]} 17. g6 {[%emt 0:02:30]} h6 {[%emt 0:00:30]} 18. Qe2 {[%emt 0:07:30]} f5 {[%emt 0:02:30]} 19. exf5 {[%emt 0:03:30]} Rxf5 {[%emt 0:00:30]} 20. h5 {[%emt 0:01:30]} d5 {[%emt 0:08:30]} 21. Nd1 {[%emt 0:06:30]} Bd7 {[%emt 0:02:30]} 22. Nf2 {[%emt 0:08:30]} Qb6 {[%emt 0:14:53]} 23. Bh3 {[%emt 0:03:30]} Rf6 {[%emt 0:02:32]} 24. Kh2 {[%emt 0:03:10]} Bd6 {[%emt 0:02:37]} 25. Nd3 {[%emt 0:01:52]} Rbf8 {[%emt 0:00:42]} 26. a4 {[%emt 0:03:47]} Kh8 {[%emt 0:00:27]} 27. axb5 {[%emt 0:05:05]} axb5 {[%emt 0:00:30]} 28. Qg2 {[%emt 0:01:51]} Ne7 {[%emt 0:01:50]} 29. c3 {[%emt 0:00:17]} Nf5 {[%emt 0:00:00]} 30. Bxf5 {[%emt 0:01:36]} Rxf5 {[%emt 0:00:00]} 31. Nd4 {[%emt 0:00:30]} Rxh5+ {[%emt 0:00:15]} 32. Rh3 {[%emt 0:00:30]} Rxh3+ {[%emt 0:00:30]} 33. Qxh3 {[%emt 0:00:30]} Qc7 {[%emt 0:00:30]} 34. Nxe6 {[%emt 0:00:00]} Qc8 {[%emt 0:04:03]} 0-1

[Event "Turkish Cup 2024"]
[Site "Denizli"]
[Date "2024.07.30"]
[Round "1"]
[White "Sandikci, Eymen"]
[Black "Baylav, Can"]
[Result "0-1"]
[ECO "A48"]
[WhiteElo "1629"]
[BlackElo "2086"]
[Annotator "ChessBase"]
[PlyCount "94"]
[EventDate "2024.08.01"]
[EventType "swiss"]
[EventCountry "TUR"]
[SourceTitle "playchess.com"]
[Source "ChessBase"]
[SourceQuality "1"]
[TimeControl "5400+30"]

1. d4 {[%emt 0:01:00]} Nf6 {[%emt 0:01:00]} 2. Bf4 {[%emt 0:00:00]} g6 {[%emt 0:00:30]} 3. Nf3 {[%emt 0:00:00]} Bg7 {[%emt 0:00:30]} 4. e3 {[%emt 0:00:30]} b6 {[%emt 0:00:00]} 5. Be2 {[%emt 0:00:30]} Bb7 {[%emt 0:00:00]} 6. O-O {[%emt 0:01:30]} O-O {[%emt 0:00:30]} 7. h3 {[%emt 0:00:30]} c5 {[%emt 0:00:00]} 8. c3 {[%emt 0:00:30]} d6 {[%emt 0:00:00]} 9. Nbd2 {[%emt 0:00:30]} Nbd7 {[%emt 0:00:30]} 10. Rc1 {[%emt 0:03:30]} Rc8 {[%emt 0:00:30]} 11. Qb3 {[%emt 0:01:30]} Rc7 {[%emt 0:01:30]} 12. Rfe1 {[%emt 0:02:30]} Qa8 {[%emt 0:00:30]} 13. Bh2 {[%emt 0:03:30]} Rcc8 {[%emt 0:06:30]} 14. Bc4 {[%emt 0:05:30]} h6 {[%emt 0:06:30]} 15. a4 {[%emt 0:03:30]} Ne4 {[%emt 0:03:30]} 16. Nxe4 {[%emt 0:02:30]} Bxe4 {[%emt 0:00:00]} 17. Qd1 {[%emt 0:04:30]} Nf6 {[%emt 0:02:00]} 18. Bf1 {[%emt 0:01:30]} Rfd8 {[%emt 0:02:30]} 19. Nd2 {[%emt 0:02:30]} Bb7 {[%emt 0:00:30]} 20. Qb3 {[%emt 0:01:30]} e6 {[%emt 0:05:30]} 21. Nc4 {[%emt 0:03:30]} Bd5 {[%emt 0:04:30]} 22. Qd1 {[%emt 0:01:30]} Ne8 {[%emt 0:00:30]} 23. b4 {[%emt 0:05:30]} e5 {[%emt 0:01:30]} 24. Qd2 {[%emt 0:03:30]} Qb7 {[%emt 0:01:30]} 25. Qb2 {[%emt 0:01:30]} Qe7 {[%emt 0:09:30]} 26. Nd2 {[%emt 0:04:30]} Ba8 {[%emt 0:09:30]} 27. Be2 {[%emt 0:10:30]} cxd4 {[%emt 0:00:30]} 28. exd4 {[%emt 0:02:30]} exd4 {[%emt 0:00:30]} 29. Ba6 {[%emt 0:10:30]} Qg5 {[%emt 0:00:00]} 30. Ne4 {[%emt 0:01:30]} Bxe4 {[%emt 0:00:00]} 31. Rxe4 {[%emt 0:00:30]} Rxc3 {[%emt 0:00:30]} 32. Rxc3 {[%emt 0:00:30]} dxc3 {[%emt 0:00:00]} 33. Qc2 {[%emt 0:00:30]} d5 {[%emt 0:00:00]} 34. Re1 {[%emt 0:00:30]} d4 {[%emt 0:00:30]} 35. f4 {[%emt 0:01:30]} Qd5 {[%emt 0:00:30]} 36. Bd3 {[%emt 0:02:30]} Nd6 {[%emt 0:00:30]} 37. Bg3 {[%emt 0:00:30]} Nf5 {[%emt 0:00:30]} 38. Bf2 {[%emt 0:00:56]} Bf6 {[%emt 0:00:30]} 39. Rd1 {[%emt 0:00:21]} Ne7 {[%emt 0:01:30]} 40. Be1 {[%emt 0:01:03]} Nc6 {[%emt 0:00:30]} 41. b5 {[%emt 0:00:26]} Nb4 {[%emt 0:00:30]} 42. Qb1 {[%emt 0:00:32]} Qc5 {[%emt 0:00:30]} 43. Rc1 {[%emt 0:01:22]} Nxd3 {[%emt 0:00:30]} 44. Qxd3 {[%emt 0:00:30]} Qf5 {[%emt 0:00:30]} 45. Qf1 {[%emt 0:01:02]} d3 {[%emt 0:00:00]} 46. g4 {[%emt 0:01:08]} Qe4 {[%emt 0:01:00]} 47. Bxc3 {[%emt 0:00:30]} Bxc3 {[%emt 0:00:00]} 0-1

[Event "Turkish Cup 2024"]
[Site "Denizli"]
[Date "2024.07.30"]
[Round "1"]
[White "Kandemir, Alper Birkan"]
[Black "Metin, Enis"]
[Result "0-1"]
[ECO "B21"]
[WhiteElo "1594"]
[BlackElo "2142"]
[Annotator "RC"]
[PlyCount "74"]
[EventDate "2024.08.01"]
[EventType "swiss"]
[EventCountry "TUR"]
[SourceTitle "playchess.com"]
[Source "ChessBase"]
[SourceQuality "1"]
[TimeControl "5400+30"]

1. e4 {[%emt 0:01:00]} c5 {[%emt 0:01:00]} 2. d4 {[%emt 0:00:00]} cxd4 {[%emt 0:00:30]} 3. Nf3 {[%emt 0:00:00]} d6 {[%emt 0:00:30]} 4. c3 {[%emt 0:00:00]} d3 {[%emt 0:04:30]} 5. Bxd3 {[%emt 0:00:00]} g6 {[%emt 0:00:30]} 6. O-O {[%emt 0:00:30]} Bg7 {[%emt 0:00:30]} 7. Re1 {[%emt 0:02:30]} Nc6 {[%emt 0:00:30]} 8. Na3 {[%emt 0:04:30]} Nf6 {[%emt 0:00:30]} 9. Bg5 {[%emt 0:06:30]} h6 {[%emt 0:02:30]} 10. Bxf6 {[%emt 0:00:30]} Bxf6 {[%emt 0:00:30]} 11. Nc4 {[%emt 0:00:30]} Bg7 {[%emt 0:00:00]} 12. e5 {[%emt 0:12:30]} d5 {[%emt 0:00:00]} 13. Ne3 {[%emt 0:00:30]} O-O {[%emt 0:00:30]} 14. c4 {[%emt 0:01:30]} d4 {[%emt 0:01:30]} 15. Nc2 {[%emt 0:01:30]} Bg4 {[%emt 0:01:30]} 16. Be4 {[%emt 0:02:30]} Nxe5 {[%emt 0:00:30]} 17. Ncxd4 {[%emt 0:03:30]} Nxc4 {[%emt 0:02:30]} 18. Qb3 {[%emt 0:01:30]} Nd6 {[%emt 0:02:30]} 19. Bxg6 {[%emt 0:01:30]} Qb6 {[%emt 0:00:30]} 20. Qxb6 {[%emt 0:01:30]} axb6 {[%emt 0:00:00]} 21. Bd3 {[%emt 0:00:30]} Ra4 {[%emt 0:01:00]} 22. b3 {[%emt 0:07:30]} Rxd4 {[%emt 0:01:30]} 23. Nxd4 {[%emt 0:00:30]} Bxd4 {[%emt 0:00:00]} 24. Rac1 {[%emt 0:00:30]} e5 {[%emt 0:00:00]} 25. Rc7 {[%emt 0:00:30]} b5 {[%emt 0:00:30]} 26. h3 {[%emt 0:00:30]} Be6 {[%emt 0:00:00]} 27. Bb1 {[%emt 0:00:30]} b4 {[%emt 0:00:00]} 28. Rd1 {[%emt 0:02:30]} Rd8 {[%emt 0:05:30]} 29. Kf1 {[%emt 0:02:30]} Bd5 {[%emt 0:00:30]} 30. Rcc1 {[%emt 0:03:30]} Nb5 {[%emt 0:00:30]} 31. Rd3 {[%emt 0:03:30]} Nc3 {[%emt 0:02:30]} 32. Rg3+ {[%emt 0:00:30]} Kf8 {[%emt 0:00:00]} 33. Bh7 {[%emt 0:01:30]} Ke7 {[%emt 0:01:00]} 34. Rc2 {[%emt 0:01:30]} Ra8 {[%emt 0:00:30]} 35. f4 {[%emt 0:00:30]} Nxa2 {[%emt 0:02:30]} 36. fxe5 {[%emt 0:00:30]} Nc3 {[%emt 0:00:00]} 37. Rd3 {[%emt 0:00:30]} Ra1+ {[%emt 0:00:00]} 0-1

[Event "Turkish Cup 2024"]
[Site "Denizli"]
[Date "2024.07.30"]
[Round "1"]
[White "Turkay, Metin"]
[Black "Korkmaz, Necmettin"]
[Result "1-0"]
[ECO "D02"]
[WhiteElo "1576"]
[BlackElo "2091"]
[Annotator "ChessBase"]
[PlyCount "121"]
[EventDate "2024.08.01"]
[EventType "swiss"]
[EventCountry "TUR"]
[SourceTitle "playchess.com"]
[Source "ChessBase"]
[SourceQuality "1"]
[TimeControl "5400+30"]

1. d4 {[%emt 0:01:00]} Nf6 {[%emt 0:02:00]} 2. Bf4 {[%emt 0:00:30]} d5 {[%emt 0:01:30]} 3. e3 {[%emt 0:00:30]} c5 {[%emt 0:01:30]} 4. Nf3 {[%emt 0:00:30]} Nc6 {[%emt 0:01:30]} 5. Bb5 {[%emt 0:00:30]} Qa5+ {[%emt 0:11:30]} 6. Nc3 {[%emt 0:01:30]} Ne4 {[%emt 0:00:30]} 7. Bxc6+ {[%emt 0:00:30]} bxc6 {[%emt 0:00:30]} 8. O-O {[%emt 0:00:30]} Nxc3 {[%emt 0:06:30]} 9. bxc3 {[%emt 0:00:30]} Bg4 {[%emt 0:22:30]} 10. Qd2 {[%emt 0:02:30]} Bxf3 {[%emt 0:05:30]} 11. gxf3 {[%emt 0:00:30]} e6 {[%emt 0:03:30]} 12. Rfb1 {[%emt 0:02:30]} Be7 {[%emt 0:05:30]} 13. Be5 {[%emt 0:00:30]} O-O {[%emt 0:01:30]} 14. Kh1 {[%emt 0:00:30]} f6 {[%emt 0:01:30]} 15. Bg3 {[%emt 0:00:30]} cxd4 {[%emt 0:05:30]} 16. exd4 {[%emt 0:01:30]} Rae8 {[%emt 0:07:30]} 17. Rb7 {[%emt 0:09:30]} Rf7 {[%emt 0:01:52]} 18. Qd3 {[%emt 0:00:30]} c5 {[%emt 0:02:45]} 19. Rb5 {[%emt 0:12:30]} Qa3 {[%emt 0:05:59]} 20. Qe3 {[%emt 0:03:30]} Bf8 {[%emt 0:00:57]} 21. dxc5 {[%emt 0:00:30]} a6 {[%emt 0:00:54]} 22. Rb4 {[%emt 0:00:30]} e5 {[%emt 0:02:16]} 23. Qd3 {[%emt 0:01:30]} d4 {[%emt 0:01:08]} 24. Rb3 {[%emt 0:00:30]} Qxc5 {[%emt 0:00:21]} 25. cxd4 {[%emt 0:00:30]} exd4 {[%emt 0:01:18]} 26. c3 {[%emt 0:02:30]} Rd7 {[%emt 0:02:45]} 27. Rd1 {[%emt 0:01:30]} Red8 {[%emt 0:00:17]} 28. c4 {[%emt 0:03:30]} Qc6 {[%emt 0:01:44]} 29. Kg2 {[%emt 0:00:00]} Rc8 {[%emt 0:00:25]} 30. Rc1 {[%emt 0:00:00]} Bc5 {[%emt 0:00:32]} 31. Bf4 {[%emt 0:00:30]} Qe6 {[%emt 0:00:10]} 32. Bg3 {[%emt 0:00:00]} h6 {[%emt 0:01:43]} 33. h4 {[%emt 0:00:00]} Qf7 {[%emt 0:00:28]} 34. Qf5 {[%emt 0:00:30]} g6 {[%emt 0:00:48]} 35. Qd3 {[%emt 0:00:30]} f5 {[%emt 0:00:15]} 36. Be5 {[%emt 0:00:30]} Be7 {[%emt 0:01:07]} 37. Qd2 {[%emt 0:02:30]} Kh7 {[%emt 0:00:56]} 38. Bg3 {[%emt 0:00:30]} Rxc4 {[%emt 0:00:08]} 39. Re1 {[%emt 0:00:30]} Bd6 {[%emt 0:00:53]} 40. Rb6 {[%emt 0:00:30]} f4 {[%emt 0:00:25]} 41. Bh2 {[%emt 0:00:30]} Bc5 {[%emt 0:00:43]} 42. Rb8 {[%emt 0:02:30]} Bd6 {[%emt 0:01:04]} 43. Rb3 {[%emt 0:00:00]} Qd5 {[%emt 0:01:17]} 44. Re4 {[%emt 0:00:00]} Rf7 {[%emt 0:00:11]} 45. Bxf4 {[%emt 0:02:30]} Bxf4 {[%emt 0:00:50]} 46. Rxf4 {[%emt 0:00:00]} Rxf4 {[%emt 0:00:42]} 47. Qxf4 {[%emt 0:00:00]} Rc3 {[%emt 0:00:03]} 48. Rxc3 {[%emt 0:01:30]} dxc3 {[%emt 0:00:30]} 49. Qc7+ {[%emt 0:00:30]} Kg8 {[%emt 0:00:00]} 50. Qxc3 {[%emt 0:00:30]} Qxa2 {[%emt 0:00:09]} 51. Qc8+ {[%emt 0:00:00]} Kf7 {[%emt 0:00:47]} 52. Qd7+ {[%emt 0:00:00]} Kf6 {[%emt 0:00:00]} 53. Qd6+ {[%emt 0:00:00]} Qe6 {[%emt 0:01:02]} 54. Qf8+ {[%emt 0:00:00]} Ke5 {[%emt 0:00:43]} 55. Qxh6 {[%emt 0:00:30]} Kd4 {[%emt 0:01:07]} 56. h5 {[%emt 0:00:30]} a5 {[%emt 0:00:30]} 57. hxg6 {[%emt 0:00:30]} Kc4 {[%emt 0:00:07]} 58. Qf4+ {[%emt 0:00:30]} Kb5 {[%emt 0:00:32]} 59. Qf7 {[%emt 0:00:30]} Qe5 {[%emt 0:00:30]} 60. Qd7+ {[%emt 0:00:30]} Ka6 {[%emt 0:00:37]} 61. g7 {[%emt 0:00:30]} 1-0

[Event "Turkish Cup 2024"]
[Site "Denizli"]
[Date "2024.07.30"]
[Round "1"]
[White "Ozcan, Abdulkadir"]
[Black "Yildiz, Serdar Murat"]
[Result "0-1"]
[ECO "B49"]
[WhiteElo "1573"]
[BlackElo "2182"]
[Annotator "RC"]
[PlyCount "86"]
[EventDate "2024.08.01"]
[EventType "swiss"]
[EventCountry "TUR"]
[SourceTitle "playchess.com"]
[Source "ChessBase"]
[SourceQuality "1"]
[TimeControl "5400+30"]

1. e4 {[%emt 0:01:00]} c5 {[%emt 0:01:00]} 2. Nf3 {[%emt 0:00:30]} e6 {[%emt 0:00:30]} 3. d4 {[%emt 0:00:30]} cxd4 {[%emt 0:00:00]} 4. Nxd4 {[%emt 0:00:00]} Nc6 {[%emt 0:00:00]} 5. Nc3 {[%emt 0:00:00]} Qc7 {[%emt 0:00:00]} 6. Be3 {[%emt 0:00:30]} a6 {[%emt 0:00:00]} 7. a3 {[%emt 0:01:30]} b5 {[%emt 0:00:00]} 8. Be2 {[%emt 0:01:30]} Bb7 {[%emt 0:00:00]} 9. O-O {[%emt 0:03:30]} Nf6 {[%emt 0:01:30]} 10. Nb3 {[%emt 0:05:30]} Ne5 {[%emt 0:04:30]} 11. f3 {[%emt 0:09:30]} d5 {[%emt 0:03:30]} 12. exd5 {[%emt 0:05:30]} Nxd5 {[%emt 0:01:30]} 13. Nxd5 {[%emt 0:01:30]} Bxd5 {[%emt 0:00:00]} 14. a4 {[%emt 0:03:30]} Nc4 {[%emt 0:04:00]} 15. Bc1 {[%emt 0:05:30]} b4 {[%emt 0:09:30]} 16. a5 {[%emt 0:00:30]} Bd6 {[%emt 0:11:30]} 17. f4 {[%emt 0:00:30]} O-O {[%emt 0:01:30]} 18. Kh1 {[%emt 0:00:00]} Rad8 {[%emt 0:03:30]} 19. Qe1 {[%emt 0:00:00]} f5 {[%emt 0:06:30]} 20. Bf3 {[%emt 0:04:30]} Bxf3 {[%emt 0:00:30]} 21. Rxf3 {[%emt 0:00:30]} e5 {[%emt 0:00:30]} 22. Be3 {[%emt 0:08:30]} Rde8 {[%emt 0:07:30]} 23. Qf2 {[%emt 0:06:30]} e4 {[%emt 0:01:30]} 24. Bb6 {[%emt 0:02:30]} Qb8 {[%emt 0:04:30]} 25. Rh3 {[%emt 0:00:30]} Bxf4 {[%emt 0:01:30]} 26. Qh4 {[%emt 0:04:30]} h6 {[%emt 0:03:30]} 27. Nc5 {[%emt 0:00:30]} Bg5 {[%emt 0:00:30]} 28. Qe1 {[%emt 0:00:30]} Ne5 {[%emt 0:06:30]} 29. Qxb4 {[%emt 0:01:30]} e3 {[%emt 0:02:30]} 30. Nxa6 {[%emt 0:03:30]} Qc8 {[%emt 0:00:00]} 31. Nc5 {[%emt 0:02:30]} f4 {[%emt 0:02:00]} 32. Ne4 {[%emt 0:00:30]} Qxc2 {[%emt 0:05:30]} 33. Nxg5 {[%emt 0:01:30]} hxg5 {[%emt 0:01:30]} 34. Bxe3 {[%emt 0:00:30]} fxe3 {[%emt 0:00:30]} 35. Rxe3 {[%emt 0:00:30]} Nd3 {[%emt 0:00:58]} 36. Qd4 {[%emt 0:00:30]} Rd8 {[%emt 0:06:15]} 37. Qc3 {[%emt 0:01:30]} Nf2+ {[%emt 0:03:35]} 38. Kg1 {[%emt 0:00:30]} Qxc3 {[%emt 0:01:10]} 39. Rxc3 {[%emt 0:00:30]} Ne4 {[%emt 0:00:42]} 40. Rc2 {[%emt 0:00:30]} Ra8 {[%emt 0:00:30]} 41. b4 {[%emt 0:00:30]} Rfb8 {[%emt 0:00:30]} 42. Rc4 {[%emt 0:00:30]} Nd2 {[%emt 0:00:30]} 43. Rd1 {[%emt 0:01:30]} Nxc4 {[%emt 0:00:02]} 0-1

[Event "Turkish Cup 2024"]
[Site "Denizli"]
[Date "2024.07.30"]
[Round "1"]
[White "Karayilan, Mehmet Yakup"]
[Black "Tirpan, Ceren"]
[Result "0-1"]
[ECO "A45"]
[WhiteElo "1567"]
[BlackElo "1926"]
[Annotator "ChessBase"]
[PlyCount "112"]
[EventDate "2024.08.01"]
[EventType "swiss"]
[EventCountry "TUR"]
[SourceTitle "playchess.com"]
[Source "ChessBase"]
[SourceQuality "1"]
[TimeControl "5400+30"]

1. d4 {[%emt 0:01:00]} Nf6 {[%emt 0:01:00]} 2. Bf4 {[%emt 0:00:30]} d6 {[%emt 0:00:00]} 3. Nd2 {[%emt 0:01:30]} g6 {[%emt 0:00:00]} 4. e4 {[%emt 0:00:30]} Bg7 {[%emt 0:02:30]} 5. Ngf3 {[%emt 0:00:00]} Nbd7 {[%emt 0:02:30]} 6. Bd3 {[%emt 0:03:00]} Nh5 {[%emt 0:07:30]} 7. Be3 {[%emt 0:02:30]} e5 {[%emt 0:02:30]} 8. c3 {[%emt 0:00:30]} Qe7 {[%emt 0:04:30]} 9. Nf1 {[%emt 0:12:30]} O-O {[%emt 0:03:30]} 10. Ng3 {[%emt 0:00:30]} Nf4 {[%emt 0:00:00]} 11. Bxf4 {[%emt 0:04:30]} exf4 {[%emt 0:00:00]} 12. Ne2 {[%emt 0:00:00]} Nf6 {[%emt 0:04:30]} 13. Qc2 {[%emt 0:01:00]} Re8 {[%emt 0:01:30]} 14. O-O {[%emt 0:04:30]} Nh5 {[%emt 0:07:30]} 15. h3 {[%emt 0:01:30]} Bd7 {[%emt 0:09:30]} 16. Rfe1 {[%emt 0:02:30]} g5 {[%emt 0:10:30]} 17. e5 {[%emt 0:03:30]} h6 {[%emt 0:02:30]} 18. exd6 {[%emt 0:02:30]} Qxd6 {[%emt 0:00:30]} 19. Rad1 {[%emt 0:04:30]} Re7 {[%emt 0:03:30]} 20. Qd2 {[%emt 0:04:30]} Rae8 {[%emt 0:03:30]} 21. Nc1 {[%emt 0:14:30]} Bc6 {[%emt 0:05:30]} 22. Rxe7 {[%emt 0:02:30]} Rxe7 {[%emt 0:00:00]} 23. Be2 {[%emt 0:03:30]} Nf6 {[%emt 0:03:00]} 24. Nd3 {[%emt 0:00:30]} b6 {[%emt 0:09:53]} 25. Nde5 {[%emt 0:01:30]} Bb7 {[%emt 0:00:38]} 26. Qc2 {[%emt 0:02:30]} Be4 {[%emt 0:02:13]} 27. Bd3 {[%emt 0:02:30]} Bxd3 {[%emt 0:00:09]} 28. Qxd3 {[%emt 0:00:30]} Nd7 {[%emt 0:00:06]} 29. Nxd7 {[%emt 0:03:30]} Qxd7 {[%emt 0:00:06]} 30. Kf1 {[%emt 0:00:30]} Qd5 {[%emt 0:04:06]} 31. c4 {[%emt 0:02:58]} Qe4 {[%emt 0:00:37]} 32. b3 {[%emt 0:02:08]} Qxd3+ {[%emt 0:04:22]} 33. Rxd3 {[%emt 0:00:39]} f5 {[%emt 0:00:03]} 34. d5 {[%emt 0:00:48]} Re4 {[%emt 0:00:56]} 35. Nd2 {[%emt 0:01:03]} Re7 {[%emt 0:02:58]} 36. b4 {[%emt 0:01:55]} Kf7 {[%emt 0:00:41]} 37. c5 {[%emt 0:01:16]} g4 {[%emt 0:00:20]} 38. Nc4 {[%emt 0:01:05]} b5 {[%emt 0:01:18]} 39. Na5 {[%emt 0:00:24]} Rd7 {[%emt 0:02:45]} 40. Nc6 {[%emt 0:00:37]} Kf6 {[%emt 0:00:46]} 41. Nxa7 {[%emt 0:01:06]} Ke5 {[%emt 0:00:38]} 42. Nxb5 {[%emt 0:00:49]} Rxd5 {[%emt 0:00:51]} 43. Ke2 {[%emt 0:00:53]} Rxd3 {[%emt 0:00:14]} 44. Kxd3 {[%emt 0:00:08]} f3 {[%emt 0:00:10]} 45. hxg4 {[%emt 0:03:48]} fxg2 {[%emt 0:00:29]} 46. Nd4 {[%emt 0:00:33]} fxg4 {[%emt 0:00:12]} 47. Ne2 {[%emt 0:00:00]} h5 {[%emt 0:00:51]} 48. b5 {[%emt 0:00:21]} h4 {[%emt 0:00:44]} 49. b6 {[%emt 0:00:14]} cxb6 {[%emt 0:00:07]} 50. cxb6 {[%emt 0:00:30]} Kd6 {[%emt 0:00:00]} 51. a4 {[%emt 0:01:38]} h3 {[%emt 0:00:00]} 52. a5 {[%emt 0:00:27]} h2 {[%emt 0:00:00]} 53. a6 {[%emt 0:00:47]} h1=Q {[%emt 0:00:00]} 54. a7 {[%emt 0:00:19]} Qd1+ {[%emt 0:00:29]} 55. Ke3 {[%emt 0:00:43]} Bh6+ {[%emt 0:00:10]} 56. Nf4 {[%emt 0:00:12]} Qf3+ {[%emt 0:00:08]} 0-1

[Event "Turkish Cup 2024"]
[Site "Denizli"]
[Date "2024.07.30"]
[Round "1"]
[White "Yurdamli, Tahsin"]
[Black "Gunduz, Umut Erdem"]
[Result "0-1"]
[ECO "A08"]
[WhiteElo "1557"]
[BlackElo "2276"]
[Annotator "RC"]
[PlyCount "56"]
[EventDate "2024.08.01"]
[EventType "swiss"]
[EventCountry "TUR"]
[SourceTitle "playchess.com"]
[Source "ChessBase"]
[SourceQuality "1"]
[TimeControl "5400+30"]

1. Nf3 {[%emt 0:01:00]} c5 {[%emt 0:01:00]} 2. g3 {[%emt 0:00:30]} d5 {[%emt 0:00:30]} 3. Bg2 {[%emt 0:00:00]} Nc6 {[%emt 0:00:00]} 4. b3 {[%emt 0:00:00]} e5 {[%emt 0:00:00]} 5. d3 {[%emt 0:00:30]} Bd6 {[%emt 0:00:00]} 6. Bb2 {[%emt 0:00:30]} Nge7 {[%emt 0:00:00]} 7. O-O {[%emt 0:00:30]} f6 {[%emt 0:00:30]} 8. Nbd2 {[%emt 0:00:30]} Be6 {[%emt 0:00:30]} 9. Re1 {[%emt 0:01:30]} g5 {[%emt 0:01:30]} 10. e4 {[%emt 0:00:30]} d4 {[%emt 0:00:30]} 11. Nc4 {[%emt 0:01:30]} Bc7 {[%emt 0:00:30]} 12. Nfd2 {[%emt 0:02:30]} h5 {[%emt 0:00:30]} 13. a3 {[%emt 0:03:30]} b5 {[%emt 0:00:30]} 14. Qe2 {[%emt 0:01:30]} bxc4 {[%emt 0:00:30]} 15. Nxc4 {[%emt 0:00:30]} Ng6 {[%emt 0:00:30]} 16. Rad1 {[%emt 0:00:30]} Qd7 {[%emt 0:00:00]} 17. Bc1 {[%emt 0:01:30]} h4 {[%emt 0:01:00]} 18. Bh1 {[%emt 0:04:30]} O-O-O {[%emt 0:00:30]} 19. Bd2 {[%emt 0:00:30]} Rdg8 {[%emt 0:01:30]} 20. c3 {[%emt 0:01:30]} Nf4 {[%emt 0:00:30]} 21. Bxf4 {[%emt 0:05:30]} gxf4 {[%emt 0:00:00]} 22. b4 {[%emt 0:04:30]} hxg3 {[%emt 0:01:00]} 23. fxg3 {[%emt 0:01:30]} dxc3 {[%emt 0:00:00]} 24. bxc5 {[%emt 0:01:30]} Qd4+ {[%emt 0:00:00]} 25. Qf2 {[%emt 0:03:30]} Rxg3+ {[%emt 0:00:30]} 26. hxg3 {[%emt 0:01:30]} Rxh1+ {[%emt 0:00:00]} 27. Kxh1 {[%emt 0:01:30]} Qxf2 {[%emt 0:00:00]} 28. gxf4 {[%emt 0:01:30]} Bg4 {[%emt 0:00:30]} 0-1

[Event "Turkish Cup 2024"]
[Site "Denizli"]
[Date "2024.07.30"]
[Round "1"]
[White "Bugdayci, Yuksel"]
[Black "Yilmaz, Turhan"]
[Result "0-1"]
[ECO "C22"]
[WhiteElo "1555"]
[BlackElo "2015"]
[Annotator "RC"]
[PlyCount "112"]
[EventDate "2024.08.01"]
[EventType "swiss"]
[EventCountry "TUR"]
[SourceTitle "playchess.com"]
[Source "ChessBase"]
[SourceQuality "1"]
[TimeControl "5400+30"]

1. e4 {[%emt 0:01:00]} e5 {[%emt 0:01:00]} 2. d4 {[%emt 0:00:00]} exd4 {[%emt 0:00:30]} 3. Qxd4 {[%emt 0:00:00]} Nc6 {[%emt 0:00:30]} 4. Qe3 {[%emt 0:00:30]} Nf6 {[%emt 0:00:00]} 5. Bd2 {[%emt 0:00:00]} b6 {[%emt 0:00:00]} 6. Nc3 {[%emt 0:00:00]} Bc5 {[%emt 0:00:30]} 7. Qg3 {[%emt 0:00:00]} O-O {[%emt 0:00:30]} 8. O-O-O {[%emt 0:01:00]} d6 {[%emt 0:01:30]} 9. Bg5 {[%emt 0:04:30]} Nh5 {[%emt 0:05:30]} 10. Qh4 {[%emt 0:02:30]} f6 {[%emt 0:00:00]} 11. Qxh5 {[%emt 0:03:30]} fxg5 {[%emt 0:01:00]} 12. Bc4+ {[%emt 0:00:30]} Kh8 {[%emt 0:00:00]} 13. f3 {[%emt 0:03:30]} Ne5 {[%emt 0:05:00]} 14. Bb3 {[%emt 0:05:30]} Be3+ {[%emt 0:00:30]} 15. Kb1 {[%emt 0:00:30]} g4 {[%emt 0:00:30]} 16. Qxe5 {[%emt 0:04:30]} dxe5 {[%emt 0:00:30]} 17. Rxd8 {[%emt 0:00:30]} Rxd8 {[%emt 0:00:00]} 18. fxg4 {[%emt 0:03:30]} Bxg4 {[%emt 0:00:00]} 19. h3 {[%emt 0:01:30]} Rf8 {[%emt 0:01:30]} 20. Bc4 {[%emt 0:03:30]} Be6 {[%emt 0:03:30]} 21. Bd3 {[%emt 0:00:00]} Bxg1 {[%emt 0:01:30]} 22. Rxg1 {[%emt 0:00:00]} c6 {[%emt 0:01:30]} 23. b3 {[%emt 0:00:30]} Rf6 {[%emt 0:00:00]} 24. Nd1 {[%emt 0:01:30]} Rg6 {[%emt 0:00:00]} 25. g4 {[%emt 0:00:30]} Rf8 {[%emt 0:00:30]} 26. Rg3 {[%emt 0:00:30]} Rgf6 {[%emt 0:00:30]} 27. Be2 {[%emt 0:02:30]} Rf4 {[%emt 0:00:30]} 28. Nc3 {[%emt 0:00:30]} Rd8 {[%emt 0:00:30]} 29. Kc1 {[%emt 0:00:30]} Rf2 {[%emt 0:00:00]} 30. Re3 {[%emt 0:01:30]} Rh2 {[%emt 0:00:00]} 31. Nd1 {[%emt 0:00:30]} Rh1 {[%emt 0:01:30]} 32. c3 {[%emt 0:08:30]} Kg8 {[%emt 0:01:30]} 33. Kc2 {[%emt 0:00:30]} Rh2 {[%emt 0:01:30]} 34. Kc1 {[%emt 0:00:30]} Kf7 {[%emt 0:00:00]} 35. Rf3+ {[%emt 0:01:30]} Kg6 {[%emt 0:00:00]} 36. Nf2 {[%emt 0:00:00]} Kg5 {[%emt 0:00:30]} 37. Bf1 {[%emt 0:02:00]} Rd7 {[%emt 0:09:30]} 38. Nd3 {[%emt 0:01:30]} Rf7 {[%emt 0:01:30]} 39. Nxe5 {[%emt 0:01:30]} Rf6 {[%emt 0:00:30]} 40. Rxf6 {[%emt 0:01:30]} Kxf6 {[%emt 0:00:30]} 41. Nf3 {[%emt 0:00:30]} Rxa2 {[%emt 0:00:30]} 42. g5+ {[%emt 0:01:30]} Ke7 {[%emt 0:01:30]} 43. Nd2 {[%emt 0:00:00]} Kd6 {[%emt 0:00:30]} 44. h4 {[%emt 0:00:00]} Ra1+ {[%emt 0:02:30]} 45. Kb2 {[%emt 0:01:30]} Rd1 {[%emt 0:00:30]} 46. Kc2 {[%emt 0:00:00]} Bxb3+ {[%emt 0:00:30]} 47. Nxb3 {[%emt 0:00:00]} Rxf1 {[%emt 0:00:30]} 48. Nd4 {[%emt 0:00:30]} g6 {[%emt 0:00:30]} 49. h5 {[%emt 0:00:00]} Rh1 {[%emt 0:00:30]} 50. hxg6 {[%emt 0:00:00]} hxg6 {[%emt 0:00:00]} 51. Kd3 {[%emt 0:00:30]} a5 {[%emt 0:00:00]} 52. e5+ {[%emt 0:00:00]} Kd7 {[%emt 0:01:30]} 53. e6+ {[%emt 0:00:00]} Kd6 {[%emt 0:00:30]} 54. e7 {[%emt 0:00:30]} Re1 {[%emt 0:00:00]} 55. c4 {[%emt 0:00:00]} Rxe7 {[%emt 0:00:00]} 56. c5+ {[%emt 0:00:00]} Kxc5 {[%emt 0:00:00]} 0-1